[Event "GER-ch Youth U12 2020"]
[Site "Willingen"]
[Date "2020.10.31"]
[Round "7.8"]
[White "Weyerer, Noah"]
[Black "Haubold, Sebastian Marcel"]
[Result "0-1"]
[ECO "A45"]
[WhiteElo "1536"]
[BlackElo "1769"]
[Annotator "NA RC"]
[PlyCount "72"]
[EventDate "2020.10.27"]
[EventType "swiss"]
[EventRounds "7"]
[EventCountry "GER"]
[SourceTitle "playchess.com"]
[Source "ChessBase"]
[SourceQuality "1"]
[TimeControl "40/5400+30:1800+30"]

1. d4 {[%emt 0:00:00]} Nf6 {[%emt 0:00:00]} 2. Bf4 {[%emt 0:00:00]} g6 {[%emt 0:00:00]} 3. Nc3 {[%emt 0:00:00]} d5 {[%emt 0:00:03]} 4. e3 {[%emt 0:00:00]} Bg7 {[%emt 0:00:26]} 5. h4 {[%emt 0:00:22]} h5 {[%emt 0:00:40]} 6. Nb5 {[%emt 0:01:32]} Na6 {[%emt 0:02:13]} 7. c4 {[%emt 0:02:21]} c6 {[%emt 0:04:12]} 8. Nc3 {[%emt 0:02:33]} Qa5 {[%emt 0:04:17]} 9. a3 {[%emt 0:02:54]} Ne4 {[%emt 0:01:56]} 10. Qc1 {[%emt 0:03:17]} c5 {[%emt 0:03:43]} 11. f3 {[%emt 0:05:56]} cxd4 {[%emt 0:16:06]} 12. b4 {[%emt 0:03:43]} Nxb4 {[%emt 0:00:13]} 13. axb4 {[%emt 0:02:20]} Qxb4 {[%emt 0:00:11]} 14. fxe4 {[%emt 0:02:02]} dxc3 {[%emt 0:00:09]} 15. Rb1 {[%emt 0:01:55]} Qa4 {[%emt 0:07:26]} 16. Ra1 {[%emt 0:07:28]} Qb3 {[%emt 0:02:05]} 17. Ra3 {[%emt 0:04:18]} Qb2 {[%emt 0:05:16]} 18. Qxb2 {[%emt 0:02:41]} cxb2 {[%emt 0:00:13]} 19. Bd3 {[%emt 0:00:49]} dxc4 {[%emt 0:00:06]} 20. Bc2 {[%emt 0:02:24]} b5 {[%emt 0:00:24]} 21. Nf3 {[%emt 0:12:35]} b4 {[%emt 0:00:13]} 22. Ra4 {[%emt 0:02:12]} b3 {[%emt 0:00:14]} 23. Bb1 {[%emt 0:00:29]} c3 {[%emt 0:00:11]} 24. Kd1 {[%emt 0:02:48]} Bg4 {[%emt 0:06:11]} 25. Bc7 {[%emt 0:03:57]} Rc8 {[%emt 0:01:01]} 26. Rxa7 {[%emt 0:00:55]} Be5 {[%emt 0:00:04]} 27. Bxe5 {[%emt 0:02:46]} c2+ {[%emt 0:00:04]} 28. Ke2 {[%emt 0:00:38]} c1=Q {[%emt 0:00:13]} 29. Rd1 {[%emt 0:02:22]} Bxf3+ {[%emt 0:01:19]} 30. gxf3 {[%emt 0:03:02]} O-O {[%emt 0:00:43]} 31. Rxe7 {[%emt 0:01:00]} Rc2+ {[%emt 0:00:14]} 32. Bxc2 {[%emt 0:01:02]} bxc2 {[%emt 0:00:03]} 33. Rd6 {[%emt 0:01:12]} Qd1+ {[%emt 0:00:45]} 34. Kf2 {[%emt 0:00:08]} Qxd6 {[%emt 0:00:07]} 35. Bxd6 {[%emt 0:00:09]} c1=Q {[%emt 0:00:07]} 36. Ba3 {[%emt 0:00:29]} Qd2+ {[%emt 0:00:10]} 0-1

[Event "GER-ch Youth U12 2020"]
[Site "Willingen"]
[Date "2020.10.31"]
[Round "7.9"]
[White "Uhlmann, Tim"]
[Black "Fruth, David"]
[Result "1-0"]
[ECO "C42"]
[WhiteElo "1523"]
[BlackElo "1665"]
[Annotator "NA RC"]
[PlyCount "49"]
[EventDate "2020.10.27"]
[EventType "swiss"]
[EventRounds "7"]
[EventCountry "GER"]
[SourceTitle "playchess.com"]
[Source "ChessBase"]
[SourceQuality "1"]
[TimeControl "40/5400+30:1800+30"]

1. e4 {[%emt 0:00:00]} e5 {[%emt 0:00:00]} 2. Nf3 {[%emt 0:00:00]} Nf6 {[%emt 0:00:00]} 3. Nxe5 {[%emt 0:00:00]} d6 {[%emt 0:00:00]} 4. Nf3 {[%emt 0:00:00]} Nxe4 {[%emt 0:00:00]} 5. Nc3 {[%emt 0:00:06]} Nxc3 {[%emt 0:00:00]} 6. dxc3 {[%emt 0:00:05]} Be7 {[%emt 0:00:04]} 7. Be3 {[%emt 0:00:05]} Nc6 {[%emt 0:00:08]} 8. Qd2 {[%emt 0:00:04]} Be6 {[%emt 0:00:07]} 9. O-O-O {[%emt 0:00:17]} Qd7 {[%emt 0:00:05]} 10. b3 {[%emt 0:00:10]} Bf6 {[%emt 0:00:40]} 11. h3 {[%emt 0:00:19]} a5 {[%emt 0:02:04]} 12. a4 {[%emt 0:00:18]} d5 {[%emt 0:07:08]} 13. g4 {[%emt 0:01:37]} Qd6 {[%emt 0:03:09]} 14. Kb2 {[%emt 0:01:59]} Be7 {[%emt 0:00:07]} 15. Ra1 {[%emt 0:00:38]} O-O-O {[%emt 0:24:05]} 16. Nd4 {[%emt 0:02:22]} Bf6 {[%emt 0:14:12]} 17. f4 {[%emt 0:08:18]} Nxd4 {[%emt 0:01:30]} 18. cxd4 {[%emt 0:02:08]} c5 {[%emt 0:01:40]} 19. g5 {[%emt 0:01:39]} cxd4 {[%emt 0:01:20]} 20. Bxd4 {[%emt 0:00:12]} Bxd4+ {[%emt 0:00:11]} 21. Qxd4 {[%emt 0:00:35]} Kb8 {[%emt 0:04:32]} 22. Bg2 {[%emt 0:03:37]} Rhe8 {[%emt 0:02:05]} 23. Rad1 {[%emt 0:00:58]} Bf5 {[%emt 0:02:56]} 24. Qxd5 {[%emt 0:03:23]} Qb4 {[%emt 0:05:05]} 25. Qxf5 {[%emt 0:06:04]} 1-0

[Event "GER-ch Youth U12 2020"]
[Site "Willingen"]
[Date "2020.10.31"]
[Round "7.10"]
[White "Sommer, Justus"]
[Black "Eichhorn, Valentin"]
[Result "1-0"]
[ECO "B40"]
[WhiteElo "1845"]
[BlackElo "1545"]
[Annotator "NA RC"]
[PlyCount "55"]
[EventDate "2020.10.27"]
[EventType "swiss"]
[EventRounds "7"]
[EventCountry "GER"]
[SourceTitle "playchess.com"]
[Source "ChessBase"]
[SourceQuality "1"]
[TimeControl "40/5400+30:1800+30"]

1. e4 {[%emt 0:00:08]} c5 {[%emt 0:00:00]} 2. Nf3 {[%emt 0:00:09]} e6 {[%emt 0:00:00]} 3. c3 {[%emt 0:00:06]} Nc6 {[%emt 0:00:53]} 4. Na3 {[%emt 0:01:02]} a6 {[%emt 0:00:56]} 5. d4 {[%emt 0:02:03]} d5 {[%emt 0:01:15]} 6. exd5 {[%emt 0:00:23]} Qxd5 {[%emt 0:00:19]} 7. Nc2 {[%emt 0:01:10]} Nf6 {[%emt 0:00:52]} 8. h3 {[%emt 0:04:37]} h6 {[%emt 0:00:57]} 9. Be3 {[%emt 0:01:03]} cxd4 {[%emt 0:03:47]} 10. Ncxd4 {[%emt 0:01:15]} Nxd4 {[%emt 0:01:48]} 11. Bxd4 {[%emt 0:00:45]} Be7 {[%emt 0:10:55]} 12. Be2 {[%emt 0:03:27]} Qd8 {[%emt 0:03:49]} 13. Qc2 {[%emt 0:01:42]} Bd6 {[%emt 0:04:25]} 14. Rd1 {[%emt 0:01:36]} Qe7 {[%emt 0:01:26]} 15. O-O {[%emt 0:04:38]} e5 {[%emt 0:05:01]} 16. Bb6 {[%emt 0:02:34]} e4 {[%emt 0:10:04]} 17. Nd2 $14 {[%emt 0:03:14]} O-O {[%emt 0:01:19]} 18. Bd4 {[%emt 0:01:55]} Bf5 {[%emt 0:05:38]} 19. Nc4 {[%emt 0:05:24]} Bg6 {[%emt 0:06:10]} 20. Bxf6 {[%emt 0:00:43]} gxf6 {[%emt 0:01:22]} 21. Nxd6 {[%emt 0:00:47]} e3 {[%emt 0:07:21]} 22. Qb3 {[%emt 0:04:54]} exf2+ {[%emt 0:02:19]} 23. Rxf2 {[%emt 0:00:22]} b5 {[%emt 0:00:56]} 24. Bf3 {[%emt 0:00:49]} Rad8 {[%emt 0:01:52]} 25. Re2 {[%emt 0:01:28]} Qd7 {[%emt 0:04:11]} 26. Red2 {[%emt 0:00:35]} Qe7 {[%emt 0:02:00]} 27. c4 {[%emt 0:02:09]} bxc4 {[%emt 0:02:39]} 28. Nxc4 {[%emt 0:00:21]} 1-0

[Event "GER-ch Youth U12 2020"]
[Site "Willingen"]
[Date "2020.10.31"]
[Round "7.11"]
[White "Gärtner, Alessandro"]
[Black "Müller, Maximilian"]
[Result "1/2-1/2"]
[ECO "A48"]
[WhiteElo "1251"]
[BlackElo "1691"]
[Annotator "NA RC"]
[PlyCount "63"]
[EventDate "2020.10.27"]
[EventType "swiss"]
[EventRounds "7"]
[EventCountry "GER"]
[SourceTitle "playchess.com"]
[Source "ChessBase"]
[SourceQuality "1"]
[TimeControl "40/5400+30:1800+30"]

{[%evp 9,63,0,0,0,-1,-23,10,-9,0,-30,-50,-30,58,50,62,61,49,17,67,22,62,50,35,40,101,102,116,110,111,95,110,77,112,100,81,0,4,5,7,0,0,0,0,0,0,0,0,0,0,0,0,0,0,0,0,0]} 1. d4 {[%emt 0:00:00]} Nf6 {[%emt 0:00:00]} 2. Nf3 {[%emt 0:00:00]} g6 {[%emt 0:00:00]} 3. Nc3 {[%emt 0:00:18]} d5 {[%emt 0:06:38]} 4. Bf4 {[%emt 0:01:33]} c6 {[%emt 0:02:27]} 5. Qd2 {[%emt 0:01:03]} Bg7 {[%emt 0:00:35]} 6. e3 {[%emt 0:00:21] D00: 1 d4 d5: Unusual lines.} O-O {[%emt 0:00:22]} 7. Ne5 {[%emt 0:00:18] [#]} Nbd7 $146 {[%emt 0:01:07]} ({Predecessor:} 7... Nfd7 8. Rd1 f6 9. Nxd7 Nxd7 10. Bg3 f5 11. f4 b5 12. Bd3 a5 13. O-O Ba6 {0-1 (28) Nieto Asencio,M (2034)-Jordan Martinez,M (2189) Padron 2011}) 8. h4 {[%emt 0:00:18]} Nh5 {[%emt 0:06:16]} 9. Bh2 {[%emt 0:01:26]} Nxe5 {[%emt 0:09:25]} 10. Bxe5 {[%emt 0:00:19]} f6 {[%emt 0:01:19]} (10... Bxe5 $11 11. dxe5 Qc7) 11. Bh2 $14 {[%emt 0:01:51]} f5 {[%emt 0:03:00]} 12. Be2 {[%emt 0:01:03]} Nf6 {[%emt 0:00:06]} 13. Bf4 {[%emt 0:02:06]} Qe8 {[%emt 0:00:53]} 14. f3 {[%emt 0:00:57]} Nd7 {[%emt 0:15:25]} 15. h5 {[%emt 0:05:28]} e5 {[%emt 0:07:04]} 16. dxe5 {[%emt 0:03:05]} Nxe5 {[%emt 0:00:08]} (16... gxh5 $14 17. e6 Ne5) 17. hxg6 $16 {[%emt 0:01:19]} hxg6 {[%emt 0:03:43]} 18. O-O-O {[%emt 0:01:48]} Qe7 {[%emt 0:06:13]} 19. Bh6 {[%emt 0:02:16]} Be6 {[%emt 0:05:43]} 20. Qd4 {[%emt 0:10:38]} Nd7 {[%emt 0:07:48]} 21. Bxg7 {[%emt 0:03:06]} Qxg7 {[%emt 0:00:01]} 22. Rh2 {[%emt 0:02:31]} ({Better is} 22. Qb4 $16) 22... Qxd4 $11 {[%emt 0:01:52] The position is equal.} 23. exd4 {[%emt 0:01:38]} Kg7 {[%emt 0:00:26]} 24. Rdh1 {[%emt 0:00:26]} Rh8 {[%emt 0:01:08]} 25. Kd2 {[%emt 0:00:32]} Rxh2 {[%emt 0:00:26]} 26. Rxh2 {[%emt 0:00:02]} Rh8 {[%emt 0:07:28]} 27. Rxh8 {[%emt 0:00:44]} Kxh8 {[%emt 0:00:01]} 28. Ke3 {[%emt 0:00:55]} Kg7 {[%emt 0:00:01]} 29. g3 {[%emt 0:01:53]} Kf6 {[%emt 0:00:14]} 30. Nd1 {[%emt 0:01:28]} Nb6 {[%emt 0:01:44]} 31. b3 {[%emt 0:00:35]} g5 {[%emt 0:02:45]} 32. Nb2 {[%emt 0:00:40] Av CentiPawn Loss W=-11/B=-11. Weighted=-16/-13} 1/2-1/2

[Event "GER-ch Youth U12 2020"]
[Site "Willingen"]
[Date "2020.10.31"]
[Round "7.12"]
[White "Möller, Maurin"]
[Black "Grabs, Peter"]
[Result "1-0"]
[ECO "C10"]
[WhiteElo "1645"]
[BlackElo "1674"]
[Annotator "NA RC"]
[PlyCount "79"]
[EventDate "2020.10.27"]
[EventType "swiss"]
[EventRounds "7"]
[EventCountry "GER"]
[SourceTitle "playchess.com"]
[Source "ChessBase"]
[SourceQuality "1"]
[TimeControl "40/5400+30:1800+30"]

1. e4 {[%emt 0:00:00]} e6 {[%emt 0:00:00]} 2. d4 {[%emt 0:00:00]} d5 {[%emt 0:00:00]} 3. Nd2 {[%emt 0:00:00]} dxe4 {[%emt 0:00:00]} 4. Nxe4 {[%emt 0:00:15]} Bd7 {[%emt 0:00:00]} 5. Nf3 {[%emt 0:03:40]} Bc6 {[%emt 0:06:00]} 6. Bd3 {[%emt 0:01:50]} Nd7 {[%emt 0:00:13]} 7. O-O {[%emt 0:00:30]} Ngf6 {[%emt 0:00:17]} 8. Re1 {[%emt 0:04:09]} Nxe4 {[%emt 0:00:17]} 9. Bxe4 {[%emt 0:00:08]} Bxe4 {[%emt 0:00:04]} 10. Rxe4 {[%emt 0:00:07]} Nf6 {[%emt 0:00:25]} 11. Re1 {[%emt 0:00:11]} c6 {[%emt 0:00:30]} 12. c3 {[%emt 0:01:34]} Be7 {[%emt 0:00:14]} 13. Ne5 {[%emt 0:01:52]} O-O {[%emt 0:00:40]} 14. Bg5 {[%emt 0:01:11]} h6 {[%emt 0:04:06]} 15. Bh4 {[%emt 0:07:26]} Qc7 {[%emt 0:01:19]} 16. Qf3 {[%emt 0:01:48]} Nd5 {[%emt 0:11:27]} 17. Bxe7 {[%emt 0:03:41]} Qxe7 {[%emt 0:03:52]} 18. Re4 {[%emt 0:10:52]} Nf6 {[%emt 0:23:33]} 19. Rf4 {[%emt 0:15:36]} Nd7 {[%emt 0:24:10]} 20. Re1 {[%emt 0:13:45]} Nxe5 {[%emt 0:05:36]} 21. Rxe5 {[%emt 0:00:54]} g5 {[%emt 0:04:43]} 22. Rfe4 {[%emt 0:01:24]} Rad8 {[%emt 0:01:35]} 23. h4 {[%emt 0:00:26]} Rd5 {[%emt 0:03:21]} 24. hxg5 {[%emt 0:01:30]} Rxe5 {[%emt 0:01:00]} 25. Rxe5 {[%emt 0:00:18]} hxg5 {[%emt 0:01:43]} 26. Qe3 {[%emt 0:00:15]} g4 {[%emt 0:04:22]} 27. Rg5+ {[%emt 0:00:26]} Kh8 {[%emt 0:00:15]} 28. Rh5+ {[%emt 0:00:20]} Kg8 {[%emt 0:00:09]} 29. Qh6 {[%emt 0:00:07]} f6 {[%emt 0:00:49]} 30. Qh8+ {[%emt 0:03:03]} Kf7 {[%emt 0:00:06]} 31. Rh7+ {[%emt 0:00:15]} Kg6 {[%emt 0:00:08]} 32. Rxe7 {[%emt 0:00:39]} Rxh8 {[%emt 0:00:10]} 33. Rxb7 {[%emt 0:00:13]} a5 {[%emt 0:00:47]} 34. Rc7 {[%emt 0:00:14]} e5 {[%emt 0:00:26]} 35. dxe5 {[%emt 0:00:48]} fxe5 {[%emt 0:00:05]} 36. Rxc6+ {[%emt 0:00:05]} Kf5 {[%emt 0:00:05]} 37. Kf1 {[%emt 0:00:24]} e4 {[%emt 0:00:36]} 38. Rc5+ {[%emt 0:00:11]} Kf4 {[%emt 0:00:46]} 39. g3+ {[%emt 0:00:08]} Kf3 {[%emt 0:00:07]} 40. Rf5# {[%emt 0:00:09]} 1-0

[Event "GER-ch Youth U12 2020"]
[Site "Willingen"]
[Date "2020.10.31"]
[Round "7.14"]
[White "Torosyan, Bagrat"]
[Black "Vecera, Fabio"]
[Result "1-0"]
[ECO "B02"]
[WhiteElo "1634"]
[BlackElo "1534"]
[Annotator "NA RC"]
[PlyCount "57"]
[EventDate "2020.10.27"]
[EventType "swiss"]
[EventRounds "7"]
[EventCountry "GER"]
[SourceTitle "playchess.com"]
[Source "ChessBase"]
[SourceQuality "1"]
[TimeControl "40/5400+30:1800+30"]

1. e4 {[%emt 0:00:00]} Nf6 {[%emt 0:00:00]} 2. Nc3 {[%emt 0:00:00]} d5 {[%emt 0:00:00]} 3. exd5 {[%emt 0:00:00]} Nxd5 {[%emt 0:00:01]} 4. Bc4 {[%emt 0:00:01]} c6 {[%emt 0:00:15]} 5. Nf3 {[%emt 0:01:21]} g6 {[%emt 0:01:00]} 6. d4 {[%emt 0:01:39]} Bg7 {[%emt 0:00:22]} 7. h3 {[%emt 0:01:52]} O-O {[%emt 0:00:17]} 8. O-O {[%emt 0:00:26]} Bf5 {[%emt 0:01:56]} 9. a3 {[%emt 0:01:36]} Nxc3 {[%emt 0:10:55]} 10. bxc3 {[%emt 0:00:15]} Nd7 {[%emt 0:00:08]} 11. Rb1 {[%emt 0:01:47]} Qc7 {[%emt 0:01:13]} 12. Nh4 {[%emt 0:12:55]} Be4 {[%emt 0:02:26]} 13. Qe2 {[%emt 0:11:51]} Bd5 {[%emt 0:00:44]} 14. Nf3 {[%emt 0:01:50]} Bxc4 {[%emt 0:01:38]} 15. Qxc4 {[%emt 0:00:10]} Nb6 {[%emt 0:00:34]} 16. Qb3 {[%emt 0:01:01]} Rad8 {[%emt 0:04:53]} 17. Bg5 {[%emt 0:03:10]} Rd7 {[%emt 0:02:09]} 18. Bh4 {[%emt 0:01:07]} Nd5 {[%emt 0:09:23]} 19. Bg3 {[%emt 0:00:32]} Nf4 {[%emt 0:00:20]} 20. Rfe1 {[%emt 0:00:54]} c5 {[%emt 0:07:45]} 21. Re4 {[%emt 0:03:09]} c4 {[%emt 0:10:04]} 22. Qa4 {[%emt 0:03:54]} Bh6 {[%emt 0:04:04]} 23. Ne5 Rd5 {[%emt 0:01:40]} 24. Bxf4 {[%emt 0:01:57]} Bxf4 {[%emt 0:03:50]} 25. Rxf4 {[%emt 0:00:17]} f6 {[%emt 0:00:19]} 26. Qxc4 {[%emt 0:00:53]} Qd6 {[%emt 0:00:14]} 27. Nd3 {[%emt 0:00:45]} Qd7 {[%emt 0:01:16]} 28. Nb4 {[%emt 0:01:12]} Kg7 {[%emt 0:01:24]} 29. Qxd5 1-0

[Event "GER-ch Youth U12 2020"]
[Site "Willingen"]
[Date "2020.10.31"]
[Round "7.15"]
[White "Werner, Florin"]
[Black "Kiefhaber, Tobias"]
[Result "1-0"]
[ECO "B14"]
[WhiteElo "1481"]
[BlackElo "1542"]
[Annotator "NA RC"]
[PlyCount "23"]
[EventDate "2020.10.27"]
[EventType "swiss"]
[EventRounds "7"]
[EventCountry "GER"]
[SourceTitle "playchess.com"]
[Source "ChessBase"]
[SourceQuality "1"]
[TimeControl "40/5400+30:1800+30"]

1. e4 {[%emt 0:00:00]} c6 {[%emt 0:00:00]} 2. d4 {[%emt 0:00:00]} d5 {[%emt 0:00:00]} 3. exd5 {[%emt 0:00:00]} cxd5 {[%emt 0:00:00]} 4. c4 {[%emt 0:00:02]} Nf6 {[%emt 0:00:10]} 5. Nc3 {[%emt 0:00:12]} e6 {[%emt 0:00:15]} 6. Nf3 {[%emt 0:00:16]} Nc6 {[%emt 0:00:21]} 7. cxd5 {[%emt 0:09:46]} exd5 {[%emt 0:02:09]} 8. Bb5 {[%emt 0:05:34]} Bg4 {[%emt 0:03:39]} 9. Qa4 {[%emt 0:05:54]} Qb6 {[%emt 0:06:58]} 10. Ne5 {[%emt 0:03:46]} Bd7 {[%emt 0:05:55]} 11. O-O {[%emt 0:22:43]} Qxd4 {[%emt 0:12:14]} 12. Nxd7 {[%emt 0:02:45]} 1-0

[Event "GER-ch Youth U12 2020"]
[Site "Willingen"]
[Date "2020.10.31"]
[Round "7.17"]
[White "Navarro Jahnke, Leo"]
[Black "Cromm, Mika"]
[Result "1/2-1/2"]
[ECO "D35"]
[WhiteElo "1686"]
[BlackElo "1665"]
[Annotator "NA RC"]
[PlyCount "83"]
[EventDate "2020.10.27"]
[EventType "swiss"]
[EventRounds "7"]
[EventCountry "GER"]
[SourceTitle "playchess.com"]
[Source "ChessBase"]
[SourceQuality "1"]
[TimeControl "40/5400+30:1800+30"]

1. d4 {[%emt 0:00:00]} d5 {[%emt 0:00:00]} 2. c4 {[%emt 0:00:03]} e6 {[%emt 0:00:00]} 3. Nc3 {[%emt 0:00:40]} Nf6 {[%emt 0:00:00]} 4. cxd5 {[%emt 0:00:11]} exd5 {[%emt 0:00:00]} 5. Bg5 {[%emt 0:00:53]} Be7 {[%emt 0:00:13]} 6. Qc2 {[%emt 0:02:04]} c6 {[%emt 0:01:51]} 7. e3 {[%emt 0:06:19]} O-O {[%emt 0:12:20]} 8. Nf3 {[%emt 0:01:06]} Nbd7 {[%emt 0:00:54]} 9. Bd3 {[%emt 0:02:12]} h6 {[%emt 0:00:58]} 10. Bf4 {[%emt 0:06:38]} c5 {[%emt 0:04:04]} 11. O-O {[%emt 0:02:40]} b6 {[%emt 0:04:38]} 12. Rfd1 {[%emt 0:09:08]} cxd4 {[%emt 0:15:47]} 13. Nxd4 {[%emt 0:02:58]} Bb7 {[%emt 0:02:59]} 14. a3 {[%emt 0:06:42]} Nc5 {[%emt 0:08:41]} 15. b4 {[%emt 0:02:44]} Nxd3 {[%emt 0:04:19]} 16. Qxd3 {[%emt 0:00:53]} Bd6 {[%emt 0:07:33]} 17. Bxd6 {[%emt 0:05:14]} Qxd6 {[%emt 0:00:06]} 18. Rac1 {[%emt 0:03:25]} a6 {[%emt 0:02:39]} 19. Nde2 {[%emt 0:09:51]} Qe5 {[%emt 0:03:56]} 20. Na4 {[%emt 0:04:11]} b5 {[%emt 0:03:56]} 21. Nc5 {[%emt 0:01:50]} Rab8 {[%emt 0:02:02]} 22. h3 {[%emt 0:07:18]} Rfd8 {[%emt 0:01:44]} 23. Qd4 {[%emt 0:02:54]} Qe7 {[%emt 0:04:45]} 24. Nf4 {[%emt 0:03:49]} g5 {[%emt 0:01:57]} 25. Nfd3 {[%emt 0:02:15]} Bc8 {[%emt 0:02:09]} 26. Ne5 {[%emt 0:01:42]} Rd6 {[%emt 0:00:31]} 27. Rc2 {[%emt 0:03:09]} Be6 {[%emt 0:00:26]} 28. Rdc1 {[%emt 0:01:41]} Rc8 {[%emt 0:01:47]} 29. f3 {[%emt 0:07:22]} Bf5 {[%emt 0:02:13]} 30. Ra2 {[%emt 0:01:09]} Nd7 {[%emt 0:01:34]} 31. Nexd7 {[%emt 0:00:36]} Bxd7 {[%emt 0:00:11]} 32. Rac2 {[%emt 0:00:30]} Rdc6 {[%emt 0:01:48]} 33. Rc3 {[%emt 0:00:48]} Rd6 {[%emt 0:00:59]} 34. Kf2 {[%emt 0:02:25]} f5 {[%emt 0:01:06]} 35. Nxd7 {[%emt 0:01:06]} Rxc3 {[%emt 0:00:14]} 36. Rxc3 {[%emt 0:00:27]} Qxd7 {[%emt 0:00:12]} 37. h4 {[%emt 0:00:21]} g4 {[%emt 0:00:59]} 38. Rc1 {[%emt 0:01:02]} gxf3 {[%emt 0:01:01]} 39. gxf3 {[%emt 0:00:14]} Rg6 {[%emt 0:00:28]} 40. Rg1 {[%emt 0:00:55]} Rxg1 {[%emt 0:00:15]} 41. Kxg1 {[%emt 0:30:23]} Qg7+ {[%emt 0:30:08]} 42. Kf2 {[%emt 0:00:00]} 1/2-1/2

[Event "GER-ch Youth U12 2020"]
[Site "Willingen"]
[Date "2020.10.31"]
[Round "7.18"]
[White "Leubner, Paul Damdin"]
[Black "Krüger, Arthur"]
[Result "0-1"]
[ECO "A08"]
[WhiteElo "1409"]
[BlackElo "1704"]
[Annotator "NA RC"]
[PlyCount "48"]
[EventDate "2020.10.27"]
[EventType "swiss"]
[EventRounds "7"]
[EventCountry "GER"]
[SourceTitle "playchess.com"]
[Source "ChessBase"]
[SourceQuality "1"]
[TimeControl "40/5400+30:1800+30"]

1. e4 {[%emt 0:00:00]} e6 {[%emt 0:00:00]} 2. d3 {[%emt 0:00:00]} c5 {[%emt 0:00:03]} 3. Nd2 {[%emt 0:00:00]} Nc6 {[%emt 0:00:34]} 4. Ngf3 {[%emt 0:00:28]} d5 {[%emt 0:00:22]} 5. g3 {[%emt 0:00:44]} Nf6 {[%emt 0:01:06]} 6. Bg2 {[%emt 0:00:57]} Be7 {[%emt 0:03:16]} 7. O-O {[%emt 0:01:40]} O-O {[%emt 0:00:18]} 8. Re1 {[%emt 0:02:25]} dxe4 {[%emt 0:03:02]} 9. Nxe4 {[%emt 0:01:06]} Qb6 {[%emt 0:03:42]} 10. Ned2 {[%emt 0:04:30]} Nd5 {[%emt 0:05:12]} 11. Nc4 {[%emt 0:02:14]} Qc7 {[%emt 0:01:50]} 12. Qe2 {[%emt 0:01:59]} b5 {[%emt 0:04:48]} 13. Ne3 {[%emt 0:06:24]} Bb7 {[%emt 0:08:01]} 14. Bd2 {[%emt 0:03:35]} a6 {[%emt 0:05:46]} 15. Rad1 {[%emt 0:06:56]} Rad8 {[%emt 0:04:38]} 16. c3 {[%emt 0:08:15]} h6 {[%emt 0:06:00]} 17. Bc1 {[%emt 0:06:34]} Bd6 {[%emt 0:03:49]} 18. d4 {[%emt 0:04:24]} cxd4 {[%emt 0:04:27]} 19. Nxd4 {[%emt 0:01:16]} Nxd4 {[%emt 0:02:48]} 20. Rxd4 {[%emt 0:02:03]} Bc5 {[%emt 0:02:50]} 21. Rdd1 {[%emt 0:04:15]} Nf6 {[%emt 0:02:24]} 22. Bxb7 {[%emt 0:09:04]} Qxb7 {[%emt 0:00:35]} 23. b3 {[%emt 0:01:57]} Qe4 {[%emt 0:03:18]} 24. Kf1 {[%emt 0:07:58]} Qh1# 0-1

[Event "GER-ch Youth U12 2020"]
[Site "Willingen"]
[Date "2020.10.31"]
[Round "7.19"]
[White "Braeutigam, Alexander"]
[Black "Schwarz, David"]
[Result "1/2-1/2"]
[ECO "A13"]
[WhiteElo "1631"]
[BlackElo "1200"]
[Annotator "NA RC"]
[PlyCount "55"]
[EventDate "2020.10.27"]
[EventType "swiss"]
[EventRounds "7"]
[EventCountry "GER"]
[SourceTitle "playchess.com"]
[Source "ChessBase"]
[SourceQuality "1"]
[TimeControl "40/5400+30:1800+30"]

1. c4 {[%emt 0:00:00]} e6 {[%emt 0:00:00]} 2. Nc3 {[%emt 0:00:00]} d5 {[%emt 0:00:32]} 3. cxd5 {[%emt 0:01:01]} exd5 {[%emt 0:00:25]} 4. d4 {[%emt 0:00:07]} Nf6 {[%emt 0:01:13]} 5. Bf4 {[%emt 0:00:25]} c5 {[%emt 0:01:15]} 6. e3 {[%emt 0:01:19]} Nc6 {[%emt 0:00:29]} 7. Nf3 {[%emt 0:01:39]} c4 {[%emt 0:00:44]} 8. Bg5 {[%emt 0:04:40]} Bb4 {[%emt 0:03:09]} 9. a3 {[%emt 0:00:25]} Bxc3+ {[%emt 0:00:28]} 10. bxc3 {[%emt 0:00:14]} h6 {[%emt 0:00:39]} 11. Bh4 {[%emt 0:00:42]} g5 {[%emt 0:01:28]} 12. Bg3 {[%emt 0:00:17]} Ne4 {[%emt 0:00:28]} 13. Qc2 {[%emt 0:01:14]} Bf5 {[%emt 0:00:49]} 14. Qb2 {[%emt 0:00:32]} Qd7 {[%emt 0:03:46]} 15. Nd2 {[%emt 0:01:05]} Nxd2 {[%emt 0:02:31]} 16. Qxd2 {[%emt 0:00:45]} Na5 {[%emt 0:01:41]} 17. Qb2 {[%emt 0:01:57]} Nb3 {[%emt 0:01:34]} 18. Rd1 {[%emt 0:00:06]} Bg6 {[%emt 0:01:46]} 19. f3 {[%emt 0:01:21]} O-O {[%emt 0:04:27]} 20. h4 {[%emt 0:01:01]} Rae8 {[%emt 0:04:02]} 21. Kf2 {[%emt 0:01:14]} Qe7 {[%emt 0:03:51]} 22. Re1 {[%emt 0:01:50]} f5 {[%emt 0:02:55]} 23. Be5 {[%emt 0:00:53]} g4 {[%emt 0:01:49]} 24. f4 {[%emt 0:00:55]} Bh5 {[%emt 0:02:10]} 25. g3 {[%emt 0:01:16]} b5 {[%emt 0:01:30]} 26. Be2 {[%emt 0:01:06]} a5 {[%emt 0:01:39]} 27. Bd1 {[%emt 0:02:01]} a4 {[%emt 0:00:14]} 28. Be2 1/2-1/2